[Event "5th Vera Menchik Memorial 2022"]
[Site "Prag"]
[Date "2022.06.05"]
[Round "2.14"]
[White "Pachmann, Ales"]
[Black "Rusnak, Jan"]
[Result "1-0"]
[ECO "B04"]
[WhiteElo "2288"]
[BlackElo "1985"]
[Annotator "TA"]
[PlyCount "67"]
[EventDate "2022.06.05"]
[EventType "tourn"]
[EventCountry "CZE"]
[SourceTitle "playchess.com"]
[Source "ChessBase"]
[SourceQuality "1"]
[TimeControl "720+3"]

{[%evp 24,67,37,25,44,35,34,-138,-124,-148,-6,-16,0,-6,20,27,14,0,73,77,67,24,33,23,97,68,115,60,349,281,285,278,433,423,410,414,791,773,1185,1158,1166,1150,1081,1079,988,942]} 1. e4 {[%emt 0:00:03][%cal Be2e4,Be4e5][%mdl 32]} Nf6 {[%emt 0:00:06]} 2. e5 {[%emt 0:00:09]} Nd5 {[%emt 0:00:01]} 3. d4 {[%emt 0:00:04]} d6 {[%emt 0:00:02]} 4. Nf3 {[%emt 0:00:03]} g6 {[%emt 0:00:02]} 5. Be2 {[%emt 0:00:04]} Bg7 {[%emt 0:00:02]} 6. O-O {[%emt 0:00:22]} O-O {[%emt 0:00:03]} 7. c4 {[%emt 0:00:14]} Nb6 {[%emt 0:00:02]} 8. exd6 {[%emt 0:00:23]} cxd6 {[%emt 0:00:02]} 9. h3 {[%emt 0:00:53]} e5 {[%emt 0:00:03]} 10. Nc3 {[%emt 0:00:31]} Nc6 {[%emt 0:00:07]} 11. dxe5 {[%emt 0:00:48]} dxe5 {[%emt 0:00:01]} 12. c5 {[%emt 0:00:09]} Nd7 {[%emt 0:00:33]} 13. Be3 {[%emt 0:00:36]} h6 {[%emt 0:00:32] [#] B04: Alekhine's Defence: 4 Nf3.} 14. Qd2 $146 {[%emt 0:00:12]} ({Predecessor:} 14. Qd6 a6 15. Rad1 Kh7 16. Ne4 Qe7 17. Bc4 Qxd6 18. Nxd6 e4 19. Nxe4 Bxb2 20. Nd6 {1-0 (46) Sredojevic,I (2382)-Radovanovic,M (2076) Dvorovi 2016}) 14... Kh7 {[%emt 0:00:02]} 15. Bc4 $2 {[%emt 0:02:22] [#]} (15. Rad1 $14 {keeps the upper hand.}) 15... f5 $1 $17 {[%emt 0:00:12] Black is clearly better.} 16. Qd5 {[%emt 0:01:02]} Ne7 {[%emt 0:04:32]} (16... f4 $17 17. Bc1 Qe7) 17. Qd6 $1 $11 {[%emt 0:00:20]} e4 {[%emt 0:00:24]} 18. Nd4 $36 {[%emt 0:00:21][%mdl 2048] White has good play.} Be5 {[%emt 0:00:02]} (18... Ne5 $5 {[%cal Re5c4]} 19. Be2 N7c6 $11) 19. Ne6 $1 {[%emt 0:00:37][%csl LRd8,LRf8]} ({Much weaker is} 19. Qe6 Rf6 20. Nd5 Rxe6 $17) 19... Bxd6 {[%emt 0:00:27]} 20. cxd6 {[%emt 0:00:29]} Nc6 {[%emt 0:00:37]} 21. Nxd8 $16 {[%emt 0:00:08] 0x0.0022fa3552a8dp-1022s more active pieces.} Rxd8 {[%emt 0:00:06]} 22. Nd5 {[%emt 0:00:11]} Nde5 {[%emt 0:00:09][%csl LRc4,LRd6] Pair of Knights!} 23. Bb3 {[%emt 0:00:41]} ({Not} 23. Nf6+ $2 Kg7 24. d7 Nxc4 $19) 23... Rxd6 {[%emt 0:00:02] [#]} (23... g5 $11) 24. Rad1 $1 {[%emt 0:00:09]} Nd3 {[%emt 0:00:10]} (24... g5 $14) 25. f3 {[%emt 0:00:06]} (25. Nc7 $16 Rb8 26. f3) 25... Na5 $2 {[%emt 0:01:02][%mdl 8192] Loses the game.} (25... Be6 $1 $14 26. fxe4 fxe4 27. Nf6+ Kg7) 26. fxe4 {[%emt 0:00:06]} Nxb3 {[%emt 0:00:03]} 27. axb3 {[%emt 0:00:13]} ({Don't play} 27. Rxd3 Na5 28. Bf4 Rc6) 27... fxe4 {[%emt 0:00:12]} (27... Bd7 {keeps fighting.} 28. Rxd3 Bb5) 28. Nf6+ $18 {[%emt 0:00:10]} Rxf6 {[%emt 0:00:32]} 29. Rxf6 {[%emt 0:00:02] Rdf1 is the strong threat.} Kg7 {[%emt 0:00:08]} (29... h5 $142 30. Rf8 Bg4 31. Rxa8 Bxd1 32. Rxa7 Kg8 33. Rxb7 Ne5) 30. Bd4 {[%emt 0:00:03] White threatens Rdf1 and mate. White is clearly winning.} Kh7 {[%emt 0:00:07]} 31. Rf7+ {[%emt 0:00:04]} Kg8 {[%emt 0:00:01]} 32. Rg7+ {[%emt 0:00:02]} Kf8 {[%emt 0:00:01]} 33. Rf1+ {[%emt 0:00:20]} Ke8 {[%emt 0:00:06]} 34. Rff7 {[%emt 0:00:37] Weighted Error Value: White=0.29 (precise) /Black=0.76} 1-0

[Event "5th Vera Menchik Memorial 2022"]
[Site "Prag"]
[Date "2022.06.05"]
[Round "2.16"]
[White "Pribyl, Josef"]
[Black "Ocelak, Jakub"]
[Result "1/2-1/2"]
[ECO "E18"]
[WhiteElo "2217"]
[BlackElo "2060"]
[Annotator "TA"]
[PlyCount "136"]
[EventDate "2022.06.05"]
[EventType "tourn"]
[EventCountry "CZE"]
[SourceTitle "playchess.com"]
[Source "ChessBase"]
[SourceQuality "1"]
[TimeControl "720+3"]

{[%evp 19,136,-7,27,-12,28,37,63,57,235,245,445,453,448,448,438,442,668,345,354,320,360,269,272,269,270,266,281,254,257,0,286,268,303,303,297,283,307,287,306,272,282,245,263,242,248,249,304,223,252,248,240,239,283,237,223,210,252,129,129,131,135,131,131,131,134,106,125,38,138,80,127,16,31,58,74,74,117,81,121,0,28,24,167,0,47,0,0,0,8,44,77,0,198,210,195,75,75,71,66,60,67,66,60,82,75,72,48,-29989,-29990,-29990,-29991,-29991,0,0,0,-29991,0,0,0]} 1. d4 {[%emt 0:00:01]} Nf6 {[%emt 0:00:09]} 2. Nf3 {[%emt 0:00:05]} b6 {[%emt 0:00:10]} 3. g3 {[%emt 0:00:04]} Bb7 {[%emt 0:00:01]} 4. Bg2 {[%emt 0:00:01]} e6 {[%emt 0:00:02]} 5. O-O {[%emt 0:00:03]} Be7 {[%emt 0:00:01]} 6. c4 {[%emt 0:00:01]} O-O {[%emt 0:00:12]} 7. Nc3 {[%emt 0:00:01]} Ne4 {[%emt 0:00:19]} 8. Bd2 {[%emt 0:00:01]} f5 {[%emt 0:00:16]} 9. d5 {[%emt 0:00:04]} Bf6 {[%emt 0:00:30]} 10. Rc1 {[%emt 0:00:12]} c5 {[%emt 0:00:16]} 11. Be1 {[%emt 0:01:11] E18: Queen's Indian: Old Main Line (4 g3 Bb7 5 Bg2 Be7 6 0-0 0-0 7 Nc3).} Nxc3 {[%emt 0:00:39]} (11... Nd6 {with more complications.} 12. Na4 exd5 13. cxd5 Na6) 12. Bxc3 {[%emt 0:00:03]} Bxc3 {[%emt 0:00:02]} 13. Rxc3 {[%emt 0:00:02] White is slightly better.} exd5 $2 {[%emt 0:00:01]} (13... Na6 $14) 14. Ne5 $18 {[%emt 0:00:17]} ({Not} 14. cxd5 d6 $11) 14... Nc6 $2 {[%emt 0:01:40]} (14... Kh8 {was called for.} 15. Bxd5 Nc6 16. Nf7+ Rxf7) 15. Qxd5+ {[%emt 0:00:09]} Kh8 {[%emt 0:00:04]} 16. Nf7+ {[%emt 0:00:03]} Rxf7 {[%emt 0:00:07]} 17. Qxf7 {[%emt 0:00:01] [#]} Qc7 $146 {[%emt 0:01:06]} (17... Ne5 $142) ({Predecessor:} 17... Rb8 18. Re3 d6 19. Rd1 h6 20. Re6 {1-0 (20) Genov,P (2501)-Schott,R (2121) Nice 2003}) 18. Qxf5 {[%emt 0:00:16] Intending Be4 and mate.} Nd4 {[%emt 0:00:09]} 19. Qd3 {[%emt 0:00:13]} Re8 {[%emt 0:00:30]} 20. e4 {[%emt 0:01:30]} Qc6 {[%emt 0:00:34]} 21. Re1 {[%emt 0:00:22]} d6 {[%emt 0:00:10]} 22. a3 {[%emt 0:00:12]} a5 {[%emt 0:00:17]} 23. Re3 {[%emt 0:00:30]} Nf5 {[%emt 0:01:09]} 24. Re1 {[%emt 0:00:10]} Nd4 {[%emt 0:00:01]} 25. Rcc1 {[%emt 0:00:18]} Qa4 {[%emt 0:00:20]} 26. Re3 {[%emt 0:00:25]} Qc6 {[%emt 0:00:08]} 27. f3 {[%emt 0:00:10]} Qa4 {[%emt 0:00:20]} 28. Kh1 {[%emt 0:00:26]} Ba6 {[%emt 0:00:22]} 29. Bf1 {[%emt 0:00:13]} Bb7 {[%emt 0:00:07]} 30. Kg2 {[%emt 0:00:07]} Qc6 {[%emt 0:00:11]} 31. Be2 {[%emt 0:00:18]} g5 {[%emt 0:00:07]} 32. h3 {[%emt 0:00:08]} Bc8 {[%emt 0:00:27]} 33. Bf1 {[%emt 0:00:18]} Bb7 {[%emt 0:00:06]} 34. b4 {[%emt 0:00:04]} axb4 {[%emt 0:00:22]} 35. axb4 {[%emt 0:00:02]} Ra8 {[%emt 0:00:01]} 36. b5 {[%emt 0:00:07]} Qd7 {[%emt 0:00:30]} 37. Qc3 {[%emt 0:00:03]} Kg8 {[%emt 0:00:28]} 38. Ra1 {[%emt 0:00:06] Inhibits Ra2+.} (38. Qd2 $18) 38... Rxa1 $16 {[%emt 0:00:06]} 39. Qxa1 {[%emt 0:00:01]} Nc2 {[%emt 0:00:02]} 40. Qc1 {[%emt 0:00:10]} Nxe3+ {[%emt 0:00:01]} 41. Qxe3 {[%emt 0:00:01][%mdl 4096] Endgame KQB-KQB} Qg7 {[%emt 0:00:08]} 42. Be2 {[%emt 0:00:32]} h6 {[%emt 0:00:05]} 43. Kf2 {[%emt 0:00:20]} (43. Qd2 $16 Qe7 44. g4) 43... Qd7 {[%emt 0:00:07]} (43... Bc8 $14) 44. Bf1 {[%emt 0:00:07]} (44. Qd2 $142) 44... Qg7 {[%emt 0:00:02]} 45. h4 {[%emt 0:00:09]} (45. Qa3 $16) 45... gxh4 {[%emt 0:00:19]} 46. gxh4 {[%emt 0:00:02] Hoping for Bh3.} Qf6 {[%emt 0:00:02]} 47. Kg3 {[%emt 0:00:16]} Qg6+ {[%emt 0:00:01]} 48. Kh2 $1 {[%emt 0:00:09]} Qf6 {[%emt 0:00:04] Against Qf4} 49. Qf2 {[%emt 0:00:09]} ({Better is} 49. Qg1+ $16 Kf7 50. Qg4) 49... Kh8 {[%emt 0:00:13]} 50. Kg1 $36 {[%emt 0:00:35][%mdl 2048] And now Bh3 would win. White is pushing.} Qf4 {[%emt 0:00:11]} (50... Bc8 $1 $11) 51. Kg2 $2 {[%emt 0:00:11]} (51. Bh3 $1 $18) 51... Qf6 {[%emt 0:00:11] Prevents Qb2.} (51... Bc8 $11 {is superior.}) 52. Bd3 {[%emt 0:00:10]} (52. h5 $14) 52... Qf4 $11 {[%emt 0:00:04]} 53. Kf1 {[%emt 0:00:07]} Qc1+ {[%emt 0:00:06]} 54. Qe1 {[%emt 0:00:10]} Qf4 {[%emt 0:00:03]} 55. Ke2 {[%emt 0:00:06]} ({White should play} 55. Qa1+ $1 $16 Kg8 56. Ke2) 55... Bc8 $2 {[%emt 0:00:09]} (55... Qf6 $1 $11 {and Black is okay.}) 56. Qa1+ $18 {[%emt 0:00:34]} Kh7 {[%emt 0:00:01]} 57. Qa7+ {[%emt 0:00:01]} (57. e5+ $1 $18 {is the precise move to win.} Kg8 58. Qa8 Qxe5+ 59. Kd2) 57... Kg6 $16 {[%emt 0:01:05]} 58. Qxb6 {[%emt 0:00:02]} Qh2+ {[%emt 0:00:00]} 59. Kd1 {[%emt 0:00:05] Threatens to win with e5+.} Qg1+ $1 {[%emt 0:00:00]} 60. Kc2 {[%emt 0:00:02]} Qf2+ {[%emt 0:00:00]} 61. Kb3 {[%emt 0:00:02]} Qd4 {[%emt 0:00:00]} 62. Bc2 {[%emt 0:00:17]} Be6 {[%emt 0:00:00]} 63. Ka3 $2 {[%emt 0:00:22][%mdl 8192]} (63. Qxd6 $14 Qxc4+ 64. Kb2) 63... Qc3+ {[%emt 0:00:00]} ({Stronger than} 63... Qxc4 64. Kb2 Qb4+ 65. Kc1 $11) 64. Bb3 {[%emt 0:00:11]} Qa1+ {[%emt 0:00:00]} 65. Ba2 {[%emt 0:00:07] [#]} Qc3+ $2 {[%emt 0:00:00]} (65... Qc1+ $1 66. Ka4 Qb2 67. Qxc5 dxc5 68. h5+ Kxh5 69. Ka5 Qxa2+ 70. Kb6 Qxc4 71. Kc6 Qb4 72. f4 Qxe4+ 73. Kb6 Qxf4 74. Kxc5 Qc4+ 75. Kd6 Kg5 76. b6 Qd5+ 77. Kc7 Qd7+ 78. Kb8 Bd5 79. b7 Qxb7#) 66. Bb3 $11 {[%emt 0:00:03]} Qa1+ $4 {[%emt 0:00:05][%mdl 8192]} (66... Qb4+ $11 67. Ka2 Qd2+ 68. Kb1 Qe1+ 69. Kc2 Qf2+ 70. Kc1 Qe1+ 71. Bd1 Qe3+ 72. Kb1 Qd2) 67. Ba2 {[%emt 0:00:05] [#]} Qc3+ $2 {[%emt 0:00:01]} (67... Qc1+ $1 {mates} 68. Ka4 Qb2 69. Qxc5 dxc5 70. Ka5 Qxa2+ 71. Kb6 Qxc4 72. Kc6 Qb4 73. Kd6 c4+ 74. Kc6 c3 75. Kb6 c2 76. f4 Qd6+ 77. Ka7 Qc7+ 78. Ka8 Bc8 79. h5+ Kxh5 80. f5 Qb7#) 68. Bb3 {[%emt 0:00:01]} Qd4 {[%emt 0:00:00] Quite a comeback for White.  Weighted Error Value: White=0.44/Black=0.44} 1/2-1/2

[Event "5th Vera Menchik Memorial 2022"]
[Site "Prag"]
[Date "2022.06.05"]
[Round "3.1"]
[White "Plat, Vojtech"]
[Black "Kulovana, Eva"]
[Result "1-0"]
[ECO "B10"]
[WhiteElo "2547"]
[BlackElo "2173"]
[Annotator "TA"]
[PlyCount "75"]
[EventDate "2022.06.05"]
[EventType "tourn"]
[EventCountry "CZE"]
[SourceTitle "playchess.com"]
[Source "ChessBase"]
[SourceQuality "1"]
[TimeControl "720+3"]

{[%evp 9,75,25,30,25,29,23,24,21,29,20,20,21,22,20,21,20,35,9,6,8,0,0,30,26,57,66,76,75,112,108,120,118,115,125,126,93,89,71,124,95,103,81,107,25,13,14,30,23,61,55,275,270,275,265,513,517,503,458,604,597,1069,1066,1060,1052,1040,1014,986,797]} 1. e4 {[%emt 0:00:02]} c6 {[%emt 0:00:01]} 2. Nf3 {[%emt 0:00:01]} d5 {[%emt 0:00:01]} 3. d3 {[%emt 0:00:01]} Bg4 {[%emt 0:00:12]} 4. h3 {[%emt 0:00:01]} Bxf3 {[%emt 0:00:02]} 5. Qxf3 {[%emt 0:00:01]} e6 {[%emt 0:00:06]} 6. Nd2 {[%emt 0:00:03] B10: Caro-Kann: 2 d3 and 2 c4.} Nf6 {[%emt 0:00:03]} 7. Qe2 {[%emt 0:00:03]} Be7 {[%emt 0:00:30]} 8. g3 {[%emt 0:00:03] White has an edge.} c5 {[%emt 0:00:26]} 9. Bg2 {[%emt 0:00:11]} Nc6 {[%emt 0:00:02]} 10. c3 {[%emt 0:00:05]} O-O {[%emt 0:00:14]} 11. O-O {[%emt 0:00:02] [#]} Rc8 $146 {[%emt 0:01:22]} ({Predecessor:} 11... Qd7 12. e5 Ne8 13. Re1 Nc7 14. Nf3 Rae8 15. Bf4 f6 16. exf6 Bxf6 17. Ne5 Nxe5 18. Bxe5 Bxe5 19. Qxe5 {1-0 (55) Belezky,A (2436)-Schwalfenberg,J (2335) Germany 2008}) 12. f4 {[%emt 0:00:10]} b5 {[%emt 0:00:21]} 13. Nf3 {[%emt 0:00:11]} c4 {[%emt 0:00:22]} 14. exd5 {[%emt 0:00:13]} cxd3 {[%emt 0:01:50]} 15. Qxd3 {[%emt 0:00:02]} Qxd5 {[%emt 0:00:12]} 16. Nd4 {[%emt 0:00:19]} Qc5 {[%emt 0:01:09]} 17. Be3 {[%emt 0:00:03]} Nxd4 {[%emt 0:00:34]} 18. Bxd4 {[%emt 0:00:02]} Qc4 {[%emt 0:00:35]} 19. Qxc4 {[%emt 0:00:05] White is more active.} bxc4 {[%emt 0:00:05]} 20. Bxa7 {[%emt 0:00:05] This bishop pair is nice.} Bc5+ {[%emt 0:00:08]} 21. Bxc5 {[%emt 0:00:02]} Rxc5 {[%emt 0:00:01]} 22. Rad1 {[%emt 0:01:10]} g6 {[%emt 0:00:43]} 23. Rd4 {[%emt 0:01:16]} Kg7 {[%emt 0:00:36]} (23... Rb5 $142) 24. Re1 {[%emt 0:00:29]} Rb8 {[%emt 0:00:31]} 25. Re5 {[%emt 0:00:03]} Rc7 {[%emt 0:00:08]} 26. Rd2 {[%emt 0:00:37]} (26. Re2 $16) 26... Nd7 $11 {[%emt 0:00:11]} 27. Re4 {[%emt 0:00:13]} Nb6 $1 {[%emt 0:00:07]} 28. Bf1 $36 {[%emt 0:00:14][%mdl 2048] White fights for an advantage.} h5 {[%emt 0:00:28]} 29. Red4 {[%emt 0:00:18]} Na4 $2 {[%emt 0:00:16] [#] This costs Black the game.} ({Better is} 29... Rcb7 $14) 30. Rxc4 $18 {[%emt 0:00:06]} ({And not} 30. Bxc4 Rxb2 31. Rxb2 Nxb2 $14) 30... Rxc4 {[%emt 0:00:07]} 31. Bxc4 {[%emt 0:00:01]} Rxb2 $2 {[%emt 0:00:19]} (31... Kf8 32. Bb3 Nc5) 32. Rxb2 {[%emt 0:00:01] White is clearly winning.} Nxb2 {[%emt 0:00:01][%mdl 4096] Endgame KB-KN} 33. Bb5 {[%emt 0:00:11] [#] Threatens to win with a4.} Kf6 {[%emt 0:00:18]} 34. a4 {[%emt 0:00:01][%cal Ba2a4,Ba4a5][%mdl 32]} Nd1 {[%emt 0:00:20]} 35. a5 {[%emt 0:00:48] aiming for a6.} Nxc3 {[%emt 0:00:14]} 36. Bc6 {[%emt 0:00:01] And now a6 would win.} Ne2+ {[%emt 0:00:22]} 37. Kf2 {[%emt 0:00:01]} Nd4 {[%emt 0:00:00]} 38. Ba4 {[%emt 0:00:01] Weighted Error Value: White=0.11 (very precise) /Black=0.40} 1-0

[Event "5th Vera Menchik Memorial 2022"]
[Site "Prag"]
[Date "2022.06.05"]
[Round "3.2"]
[White "Jedlicka, Ales"]
[Black "Pulpan, Jakub"]
[Result "0-1"]
[ECO "E05"]
[WhiteElo "2207"]
[BlackElo "2418"]
[Annotator "TA"]
[PlyCount "128"]
[EventDate "2022.06.05"]
[EventType "tourn"]
[EventCountry "CZE"]
[SourceTitle "playchess.com"]
[Source "ChessBase"]
[SourceQuality "1"]
[TimeControl "720+3"]

{[%evp 13,128,0,0,0,8,10,19,16,19,16,6,-8,-10,-30,-5,-5,-12,0,-8,-40,9,-21,-11,-56,-60,-60,-68,-104,-62,-55,-49,-67,-67,-120,-122,-135,-133,-119,-116,-233,-248,-229,-46,-38,-38,-76,-88,-81,-83,-104,-111,-176,-116,-113,-111,-166,-165,-166,-128,-137,-124,-124,-124,-119,-116,-116,-107,-106,-91,-89,-78,-91,-78,-78,-70,-70,-66,-71,-63,-63,-63,-63,-63,-75,-75,-75,-75,-75,-75,-75,-52,-52,-52,-52,-52,-75,-75,-75,-75,-75,-75,-75,-75,-75,-52,-52,-52,-52,-52,-91,-91,-29963,-29964,-12774,-8577,-1744,-1358]} 1. d4 {[%emt 0:00:03]} Nf6 {[%emt 0:00:05]} 2. c4 {[%emt 0:00:05]} e6 {[%emt 0:00:02]} 3. Nf3 {[%emt 0:00:03]} d5 {[%emt 0:00:02]} 4. g3 {[%emt 0:00:05]} Be7 {[%emt 0:00:12]} 5. Bg2 {[%emt 0:00:03]} O-O {[%emt 0:00:06]} 6. O-O {[%emt 0:00:04]} dxc4 {[%emt 0:00:04]} 7. Qc2 {[%emt 0:00:07]} b5 {[%emt 0:00:09]} 8. a4 {[%emt 0:00:03] E05: Open Catalan: 5 Nf3 Be7.} b4 {[%emt 0:00:01]} 9. Nfd2 {[%emt 0:00:08]} Nd5 $1 {[%emt 0:00:01][%mdl 4] outshines the older 9...c6.} 10. Nxc4 {[%emt 0:00:09] The position is equal.} c5 {[%emt 0:00:01]} 11. dxc5 {[%emt 0:00:14]} Ba6 {[%emt 0:00:01]} 12. Nbd2 {[%emt 0:00:20]} Bxc5 {[%emt 0:01:01]} 13. b3 {[%emt 0:01:20]} (13. Nb3 $5 {[%cal Rb3c5]} Nd7 14. Nxc5 Nxc5 15. Ne3 $11) 13... Nd7 {[%emt 0:00:22]} (13... Nc6 $5 {[%cal Rc6d4]} 14. e3 Rc8 $11) 14. Bb2 {[%emt 0:00:09] Prevents Bd4.} Rc8 {[%emt 0:00:10][%cal Oc5d6]} 15. Rac1 {[%emt 0:00:35] [#]} N7b6 $146 {[%emt 0:00:24]} ({Predecessor:} 15... Qe7 16. Qb1 Rfd8 17. Qa1 f6 18. a5 Bb5 19. Nf3 a6 20. Nd4 Nc3 21. Bxc3 bxc3 22. Qxc3 Bxd4 23. Qxd4 {½-½ (36) Mulyar,M (2361)-Girsh,D (1964) Ledyard 2022}) 16. Qe4 {[%emt 0:00:48]} Qe7 {[%emt 0:01:04]} (16... Be7 $15) 17. e3 {[%emt 0:00:16]} Rfd8 {[%emt 0:00:35][%cal Od5c3]} 18. Rfd1 {[%emt 0:00:02]} (18. a5 $5 {[%cal Ra5b6]} Nc3 19. Bxc3 bxc3 20. Rxc3 $11) 18... Nc3 $1 {[%emt 0:01:28]} 19. Bxc3 {[%emt 0:00:26]} bxc3 {[%emt 0:00:04]} 20. Rxc3 {[%emt 0:00:51]} Bxc4 {[%emt 0:01:21]} 21. bxc4 {[%emt 0:00:12]} Nxa4 {[%emt 0:01:07]} 22. Rc2 {[%emt 0:00:53]} Bb4 $1 {[%emt 0:00:12] Threatens to win with ...Nc3. Black is more active.} 23. c5 {[%emt 0:00:17]} ({White should try} 23. Qb7 $15) 23... a5 $1 $17 {[%emt 0:00:14]} ({Don't play} 23... Nc3 24. Qxb4 Nxd1 25. Bf3 $16) 24. Qf3 {[%emt 0:01:10]} Qd7 {[%emt 0:01:54]} ({Not} 24... Bxc5 25. Rdc1 $17) 25. c6 {[%emt 0:00:14]} Qd3 {[%emt 0:00:02]} 26. Qe4 {[%emt 0:01:46]} ({Wrong is} 26. Rc4 $2 Nc3 27. Bf1 Qc2 $19) (26. Rdc1 $17 {is the only way for White.} Bxd2 27. Bf1) 26... Qxe4 $1 $19 {[%emt 0:01:51]} 27. Bxe4 {[%emt 0:00:03]} Nc5 $2 {[%emt 0:00:19]} (27... Nc3 $19 28. Ra1 Rxd2 $1 29. Bxh7+ Kxh7 30. Rxd2 Rxc6) 28. Bf3 {[%emt 0:00:08]} Kf8 {[%emt 0:00:11]} 29. Nc4 {[%emt 0:00:23] Hoping for Rxd8+.} Rxd1+ {[%emt 0:00:05]} 30. Bxd1 {[%emt 0:00:02][%cal Oc4a5]} Rxc6 {[%emt 0:00:02]} 31. Ne5 {[%emt 0:00:15]} Rd6 {[%emt 0:00:13]} 32. Be2 {[%emt 0:00:27]} (32. Bf3 $17) 32... Rd2 {[%emt 0:00:07]} ({Better is} 32... a4 $19 {White must now prevent ...Rd2.} 33. Kg2 a3) 33. Rxd2 $17 {[%emt 0:00:12]} Bxd2 {[%emt 0:00:01][%mdl 4096] Endgame KBN-KBN} 34. Nc4 {[%emt 0:00:19]} (34. Bb5 $17 {was worth a try.}) 34... Bb4 $19 {[%emt 0:00:04]} 35. Ne5 {[%emt 0:00:21]} a4 {[%emt 0:00:06][%cal Ba5a4,Ba4a3][%mdl 32]} 36. Nd3 {[%emt 0:00:02]} Nxd3 {[%emt 0:00:05]} 37. Bxd3 $17 {[%emt 0:00:01] KB-KB} a3 {[%emt 0:00:01] Strongly threatening ...a2.} 38. Bc4 {[%emt 0:00:02]} Ke7 {[%emt 0:00:00]} 39. Kf1 {[%emt 0:00:02]} f6 {[%emt 0:00:01]} 40. Ke2 {[%emt 0:00:01]} Kd6 {[%emt 0:00:01]} 41. Kd3 {[%emt 0:00:01]} e5 {[%emt 0:00:05]} 42. Ba2 {[%emt 0:00:04]} Kc5 {[%emt 0:00:02]} 43. f3 {[%emt 0:00:15]} Kb5 {[%emt 0:00:08]} 44. g4 {[%emt 0:00:08]} Bc5 {[%emt 0:00:04]} 45. e4 {[%emt 0:00:05]} Bb4 {[%emt 0:00:04]} 46. h4 {[%emt 0:00:02]} h5 {[%emt 0:00:03]} 47. gxh5 {[%emt 0:00:05]} Be1 {[%emt 0:00:01]} 48. Ke2 {[%emt 0:00:13]} Bxh4 {[%emt 0:00:02]} 49. Kd3 {[%emt 0:00:01]} Bg5 {[%emt 0:00:02]} 50. Bf7 {[%emt 0:00:03]} Kc5 {[%emt 0:00:02]} 51. Ba2 {[%emt 0:00:01]} Kd6 {[%emt 0:00:01]} 52. Kc4 {[%emt 0:00:06]} Ke7 {[%emt 0:00:02]} 53. Kb3 {[%emt 0:00:05]} Bc1 $1 {[%emt 0:00:01]} 54. Kc2 {[%emt 0:00:01]} Be3 {[%emt 0:00:02]} 55. Kd3 {[%emt 0:00:02]} Bc5 {[%emt 0:00:01]} 56. Kc4 {[%emt 0:00:01]} Bd6 {[%emt 0:00:01]} 57. Kd5 {[%emt 0:00:04]} Bb8 {[%emt 0:00:04]} 58. Kc6 {[%emt 0:00:10]} Ba7 {[%emt 0:00:11]} (58... f5 $5) 59. Kb7 {[%emt 0:00:04]} Be3 {[%emt 0:00:05] aiming for ...Kd6.} 60. Kc6 {[%emt 0:00:02]} f5 {[%emt 0:00:06][%cal Bf6f5,Bf5f4][%mdl 32]} 61. Kd5 {[%emt 0:00:22]} Kf6 {[%emt 0:00:02]} 62. Kd6 $2 {[%emt 0:00:20][%mdl 8192] [#]} (62. Kc4 $17) 62... f4 $1 {[%emt 0:00:03]} 63. Kd5 {[%emt 0:00:04]} Bd4 {[%emt 0:00:01] ( -> ...Kg5)} 64. Kc4 {[%emt 0:00:10]} Kg5 {[%emt 0:00:13] Weighted Error Value: White=0.26 (precise) /Black=0.11 (very precise)} 0-1

[Event "5th Vera Menchik Memorial 2022"]
[Site "Prag"]
[Date "2022.06.05"]
[Round "3.3"]
[White "Jirovsky, Milos"]
[Black "Lnenickova, Gabriela"]
[Result "1-0"]
[ECO "E68"]
[WhiteElo "2458"]
[BlackElo "2146"]
[Annotator "TA"]
[PlyCount "61"]
[EventDate "2022.06.05"]
[EventType "tourn"]
[EventCountry "CZE"]
[SourceTitle "playchess.com"]
[Source "ChessBase"]
[SourceQuality "1"]
[TimeControl "720+3"]

{[%evp 19,61,40,43,20,46,27,110,50,62,54,108,52,68,63,82,63,72,67,77,80,86,79,143,50,70,0,116,66,92,58,92,52,57,69,59,68,268,60,169,150,319,294,306,270]} 1. Nf3 {[%emt 0:00:02]} Nf6 {[%emt 0:00:03]} 2. c4 {[%emt 0:00:00]} g6 {[%emt 0:00:03]} 3. g3 {[%emt 0:00:01]} Bg7 {[%emt 0:00:02]} 4. Bg2 {[%emt 0:00:02]} O-O {[%emt 0:00:03]} 5. O-O {[%emt 0:00:02]} d6 {[%emt 0:00:03]} 6. d4 {[%emt 0:00:01]} Nbd7 {[%emt 0:00:08]} 7. Qc2 {[%emt 0:00:01]} e5 {[%emt 0:00:18]} 8. Rd1 {[%emt 0:00:02]} Qe7 {[%emt 0:00:11]} 9. Nc3 {[%emt 0:00:02]} c6 {[%emt 0:00:06]} 10. e4 {[%emt 0:00:02]} Re8 {[%emt 0:00:22]} 11. h3 {[%emt 0:00:13] E68: King's Indian: Fianchetto: 6...Nbd7 7 0-0 e5 8 e4.} a5 {[%emt 0:00:47]} 12. Be3 {[%emt 0:00:07] [#]} Nf8 $146 {[%emt 0:00:59]} (12... exd4 $11 {keeps the balance.} 13. Bxd4 Nc5) ({Predecessor:} 12... exd4 13. Nxd4 Nc5 14. f3 Nfd7 15. Bf2 h5 {½-½ (15) Trichkov,V (2312)-Hausner,I (2331) Czech Republic 2018}) 13. Rd2 {[%emt 0:00:26]} (13. c5 $16) 13... exd4 $14 {[%emt 0:02:18]} 14. Nxd4 {[%emt 0:00:02]} Ne6 {[%emt 0:00:12]} (14... N8d7 $14) 15. Re1 {[%emt 0:00:55] White is more active.} (15. Nxe6 $16 Bxe6 16. Bf4) 15... Nc5 {[%emt 0:00:14][%cal Rf6e4]} 16. f3 {[%emt 0:00:26][%cal Bf2f3,Bf3f4][%mdl 32]} Bd7 {[%emt 0:00:10]} 17. b3 {[%emt 0:00:12]} Rad8 {[%emt 0:00:12]} 18. Bf2 {[%emt 0:00:33]} Bc8 {[%emt 0:00:12]} 19. f4 {[%emt 0:00:16]} Qc7 {[%emt 0:00:12]} 20. Kh2 {[%emt 0:00:12]} Re7 {[%emt 0:00:18] [#]} ({Black should try} 20... h5) 21. Nf3 {[%emt 0:00:26]} (21. Ndb5 $1 $16 {[%mdl 512]} cxb5 22. Nxb5) 21... Nfd7 {[%emt 0:01:46]} 22. Nd4 {[%emt 0:01:10]} (22. Rde2 $14) 22... Rde8 {[%emt 0:00:20] [#]} (22... Nf6 $1 $11) 23. Rde2 {[%emt 0:00:11]} (23. Red1 $1 $16) 23... Ne6 {[%emt 0:00:28]} 24. Qd2 {[%emt 0:01:15]} Ndc5 {[%emt 0:00:18]} 25. Rd1 {[%emt 0:00:30]} Nxd4 {[%emt 0:01:17]} 26. Bxd4 {[%emt 0:00:01]} Bxd4 {[%emt 0:00:20]} 27. Qxd4 {[%emt 0:00:02]} Rd7 $2 {[%emt 0:00:50]} ({Better is} 27... Qb6 $14) 28. Red2 $2 {[%emt 0:00:14]} (28. e5 $18) 28... Rdd8 {[%emt 0:00:09]} (28... Qd8 $14) 29. e5 $1 $18 {[%emt 0:00:20][%cal Be4e5,Be5d6][%mdl 32]} Ne6 $2 {[%emt 0:00:09]} (29... Re6 $16 30. Qxc5 dxc5 31. Rxd8+ Kg7) 30. exd6 {[%emt 0:00:06]} Qd7 {[%emt 0:00:40]} 31. Qb6 {[%emt 0:00:14] Weighted Error Value: White=0.48/Black=0.48} 1-0